Cogmind - Beta 11.1 @@@ ROGUE MODE // 2022.05.04 @ 14:19:23 Player: Azken Zutik Result: Destroyed by S-27 Virus with Autogun Performance ------------- Evolutions (3) 1500 Regions Visited (4) 800 Robots Destroyed (1) 5 Value Destroyed (16) 16 Prototype IDs (2) 40 Alien Tech Used (0) 0 Bonus (0) 0 TOTAL SCORE: 2361 Bonus ------- None Cogmind --------- Core Integrity 0/700 Matter 300/300 Energy 99/100 System Corruption 1% Temperature Cool (0) Movement Core (50) Location -7/Factory Parts ------- > --- POWER (1) -------- (None) > --- PROPULSION (2) --- (None) > --- UTILITY (8) ------ (None) > --- WEAPON (2) ------- (None) > --- INVENTORY (5) ---- Light Treads Light Treads Wheel Wheel Peak State ------------ > --- POWER ------------ (None) > --- PROPULSION ------- Improved Flight Unit Improved Cesium-ion Thruster > --- UTILITY ---------- Sensor Array > --- WEAPON ----------- (None) > --- INVENTORY -------- Light Treads Light Treads Wheel Wheel [Rating: 9] Favorites ----------- Power None Propulsion Improved Flight Unit Flight Unit Improved Flight Unit Utility Sensor Array Device Sensor Array Weapon Light Assault Rifle Ballistic Gun Light Assault Rifle Build | -11 -10 -9 -8 -7 ------- Run | Scr Mat Mat Mat Fac Slots Evolved 6 | . . 2 2 2 Power . | . . . . . Propulsion . | . . . . . Utility 6 | . . 2 2 2 Weapon . | . . . . . Parts Attached 6 | . 2 . 3 1 Power . | . . . . . Engine . | . . . . . Core . | . . . . . Reactor . | . . . . . Propulsion 3 | . . . 2 1 Treads . | . . . . . Leg . | . . . . . Wheel . | . . . . . Hover . | . . . . . Flight 3 | . . . 2 1 Utility 2 | . 1 . 1 . Device 2 | . 1 . 1 . Storage . | . . . . . Processor . | . . . . . Hackware . | . . . . . Protection . | . . . . . Artifact . | . . . . . Weapon 1 | . 1 . . . Energy Gun . | . . . . . Energy Cannon . | . . . . . Ballistic Gun 1 | . 1 . . . Ballistic Cannon . | . . . . . Launcher . | . . . . . Special Weapon . | . . . . . Impact Weapon . | . . . . . Slashing Weapon . | . . . . . Piercing Weapon . | . . . . . Special Melee Weapon . | . . . . . Unidentified Prototypes 2 | . . . 1 1 Parts Lost 4 | . . . 2 2 Power . | . . . . . Propulsion 2 | . . . 1 1 Utility 1 | . . . . 1 Weapon 1 | . . . 1 . Highest Loss Streak 2 | . . . 2 2 To Critical Strikes . | . . . . . Average Slot Usage (%) 11 | . 21 19 29 4 Flight 2 | . . . 11 2 Device 4 | . 9 8 9 2 Ballistic Gun 4 | . 11 11 9 . Naked Turns 157 | . 12 . . 145 Heaviest Build 2 | . 2 2 2 1 Greatest Support 10 | 3 3 3 10 5 Greatest Overweight (x) . | . . . . . Average Overweight (x) . | . . . . . Largest Inventory Capacity 5 | . 5 5 5 5 Average Capacity 5 | . 5 5 5 5 Most Carried 5 | . 5 5 4 4 Average Carried 4 | . 4 4 4 4 Final Capacity 5 | 5 5 5 5 5 Final Carried 5 | 5 4 5 4 4 Class Distribution -------------------- 100% | Mutant Dominant Class ---------------- Mutant | -10/Materials Mutant | -9/Materials Mutant | -8/Materials Mutant | -7/Factory Resources | -11 -10 -9 -8 -7 ----------- Run | Scr Mat Mat Mat Fac Matter Collected 200 | 200 . . . . Remotely . | . . . . . Salvage Created 25 | . 25 . . . Parts 3 | . 3 . . . Haulers Intercepted . | . . . . . Recyclers Shooed . | . . . . . Parts Field Recycled . | . . . . . Retrieved Matter . | . . . . . Parts Self-Destructed . | . . . . . Prevented . | . . . . . Kills | -11 -10 -9 -8 -7 ------- Run | Scr Mat Mat Mat Fac Combat Hostiles Destroyed . | . . . . . Classes Destroyed 1 | . 1 . . . Watcher 1 | . 1 . . . Best Kill Streak 1 | . 1 . . . Combat Bots Only . | . . . . . Max Kills in Single Turn 1 | . 1 . . . Gunslinging . | . . . . . Exploded . | . . . . . Melee . | . . . . . Uniques/NPCs Destroyed . | . . . . . Combat | -11 -10 -9 -8 -7 -------- Run | Scr Mat Mat Mat Fac Damage Taken 1155 | . 45 129 240 741 Core 973 | . 23 80 161 709 Absorbed by Shields . | . . . . . Core Remaining (%) 85 | 100 90 80 70 . Volleys Fired 2 | . 2 . . . Largest 1 | . 1 . . . Hottest 20 | . 20 . . . Shots Fired 2 | . 2 . . . Gun 2 | . 2 . . . Cannon . | . . . . . Launcher . | . . . . . Special . | . . . . . Kinetic 2 | . 2 . . . Thermal . | . . . . . Explosive . | . . . . . Electromagnetic . | . . . . . Robot Hit Streak 2 | . 2 . . . Robot Miss Streak . | . . . . . Penetration Max . | . . . . . Secondary Targets . | . . . . . Shots Hit Robots 2 | . 2 . . . Core Hits 4 | . 1 1 1 1 Critical Kills 1 | . 1 . . . Critical Parts Destroyed . | . . . . . Critical Strikes 1 | . 1 . . . Destroy 1 | . 1 . . . Melee Attacks . | . . . . . Impact . | . . . . . Slashing . | . . . . . Piercing . | . . . . . Sneak Attacks . | . . . . . Combat Hostiles . | . . . . . Follow-up Attacks . | . . . . . Damage Inflicted 56 | . 14 3 3 36 Guns 14 | . 14 . . . Cannons . | . . . . . Explosions . | . . . . . Melee . | . . . . . Ramming 42 | . . 3 3 36 Kinetic 14 | . 14 . . . Thermal . | . . . . . Explosive . | . . . . . Electromagnetic . | . . . . . Impact . | . . . . . Slashing . | . . . . . Piercing . | . . . . . Highest Corruption 1 | . 1 . . 1 Average Corruption 1 | . 1 . . 1 Corruption Purged . | . . . . . Corruption Blocked . | . . . . . Overload Shots . | . . . . . Overflow Damage . | . . . . . Projectiles . | . . . . . Explosions . | . . . . . Melee . | . . . . . Knockbacks . | . . . . . Impact . | . . . . . Kinetic . | . . . . . Secondary . | . . . . . Self-Inflicted Damage 17 | . . 1 1 15 Shots . | . . . . . Rammed 16 | . . 1 2 13 Targets Rammed 16 | . . 1 2 13 Kicked . | . . . . . Crushed . | . . . . . Highest Temperature 6 | . . . . 6 Average Temperature 6 | . . . . 6 Received Heat Transfer 393 | . 24 54 36 279 Siege Activations . | . . . . . Robots Corrupted . | . . . . . Combat Hostiles . | . . . . . Parts Fried . | . . . . . Impact Corruptions . | . . . . . Robots Melted . | . . . . . Combat Hostiles . | . . . . . Parts Melted . | . . . . . Heat Transferred . | . . . . . Parts Sabotaged . | . . . . . Parts Stolen . | . . . . . Parts Stripped . | . . . . . Power Chain Reactions . | . . . . . Missiles Intercepted . | . . . . . Alert | -11 -10 -9 -8 -7 ------- Run | Scr Mat Mat Mat Fac Peak Influence 293 | . 52 84 50 293 Initial 35 | . . 21 35 13 Average 102 | . 23 49 43 146 Maximum Alert Level 1 | . . . . 1 Low Security (%) 72 | . 100 100 100 54 Level 1 27 | . . . . 45 Level 2 . | . . . . . Level 3 . | . . . . . Level 4 . | . . . . . Level 5 . | . . . . . High Security . | . . . . . Max Security . | . . . . . Squads Dispatched 6 | . 2 1 1 2 Investigation 1 | . . 1 . . Extermination . | . . . . . Reinforcement 5 | . 2 . 1 2 Assault . | . . . . . Garrison . | . . . . . Intercept . | . . . . . Searches Triggered . | . . . . . Construction Impeded . | . . . . . Haulers Reinforced . | . . . . . Active Scanning Responses . | . . . . . Cargo Convoy Interrupts . | . . . . . Stealth | -11 -10 -9 -8 -7 --------- Run | Scr Mat Mat Mat Fac Distress Signals . | . . . . . Communications Jammed . | . . . . . Distress Signals . | . . . . . Times Spotted 45 | . 6 7 8 24 Peak Tracking Total 9 | . 5 7 8 9 Tactical Retreats 5 | . . . . 5 Traps | -11 -10 -9 -8 -7 ------- Run | Scr Mat Mat Mat Fac Traps Triggered 1 | . 1 . . . Indirectly . | . . . . . Trap Hack Attempts . | . . . . . Triggered . | . . . . . Disarmed . | . . . . . Reprogrammed . | . . . . . Reused . | . . . . . Traps Extracted . | . . . . . Installed . | . . . . . Triggered . | . . . . . Machines | -11 -10 -9 -8 -7 ---------- Run | Scr Mat Mat Mat Fac Machines Disabled . | . . . . . Max in Single Turn . | . . . . . Machines Sabotaged . | . . . . . Garrisons Compromised . | . . . . . Overloaded Fab Kills . | . . . . . Hacking | -11 -10 -9 -8 -7 --------- Run | Scr Mat Mat Mat Fac Machines Accessed 1 | . . 1 . . Terminals 1 | . . 1 . . Fabricators . | . . . . . Repair Stations . | . . . . . Recycling Units . | . . . . . Scanalyzers . | . . . . . Garrison Access . | . . . . . Total Hacks 4 | . . 4 . . Successful 1 | . . 1 . . Failed 3 | . . 3 . . Catastrophic 2 | . . 2 . . Database Lockouts . | . . . . . Manual 4 | . . 4 . . Terminals 4 | . . 4 . . Fabricators . | . . . . . Repair Stations . | . . . . . Recycling Units . | . . . . . Scanalyzers . | . . . . . Garrison Access . | . . . . . Terminal Hacks 1 | . . 1 . . Level Access Points 1 | . . 1 . . Fabricator Hacks . | . . . . . Repair Station Hacks . | . . . . . Recycling Unit Hacks . | . . . . . Scanalyzer . | . . . . . Garrison Access Hacks . | . . . . . Unauthorized Hacks . | . . . . . Terminals . | . . . . . Fabricators . | . . . . . Repair Stations . | . . . . . Recycling Units . | . . . . . Scanalyzers . | . . . . . Garrison Access . | . . . . . Data Cores Recovered . | . . . . . Used . | . . . . . Hacking Detections 1 | . . 1 . . Full Trace Events 1 | . . 1 . . Feedback Events . | . . . . . Feedback Blocked . | . . . . . Robot Schematics Acquired . | . . . . . Robots Built . | . . . . . Authchips . | . . . . . Time . | . . . . . Total Robot Build Rating . | . . . . . Part Schematics Acquired . | . . . . . Parts Built . | . . . . . Authchips . | . . . . . Time . | . . . . . Total Part Build Rating . | . . . . . Parts Repaired . | . . . . . Time . | . . . . . Parts Recycled . | . . . . . Recycled Matter . | . . . . . Retrieved Matter . | . . . . . Retrieved Components . | . . . . . Parts Scanalyzed . | . . . . . Part Schematics Acquired . | . . . . . Parts Damaged . | . . . . . Bothacking | -11 -10 -9 -8 -7 ------------ Run | Scr Mat Mat Mat Fac Used RIF Installer . | . . . . . Robots Hacked . | . . . . . Non-combat . | . . . . . Combat . | . . . . . Robot Hacks Applied . | . . . . . Relay Couplers Released . | . . . . . Fabnet Peak Effective % . | . . . . . Robots Rewired . | . . . . . Allies Hacked . | . . . . . Hacks Repelled . | . . . . . Allies | -11 -10 -9 -8 -7 -------- Run | Scr Mat Mat Mat Fac Total Allies . | . . . . . Largest Group . | . . . . . Highest-Rated Group . | . . . . . Highest-Rated Ally . | . . . . . Total Orders . | . . . . . Ally Attacks . | . . . . . Total Damage . | . . . . . Kills . | . . . . . Allies Corrupted . | . . . . . Allies Melted . | . . . . . Intel | -11 -10 -9 -8 -7 ------- Run | Scr Mat Mat Mat Fac Robot Analysis Total . | . . . . . Derelict Logs Recovered . | . . . . . Drone Launches . | . . . . . Drone Recoveries . | . . . . . Exploration | -11 -10 -9 -8 -7 ------------- Run | Scr Mat Mat Mat Fac Turns Passed 363 | . 62 41 41 219 Spaces Moved 718 | 1 112 79 86 440 Core 495 | 1 112 79 26 277 Treads . | . . . . . Legs . | . . . . . Wheels . | . . . . . Hover . | . . . . . Flight 223 | . . . 60 163 Fastest Speed 37 | 50 50 50 37 40 Average Speed 46 | 50 50 50 41 46 Slowest Speed 50 | 50 50 50 50 50 Overloaded Moves . | . . . . . Propulsion Burnouts . | . . . . . Robots Hopped . | . . . . . Cave-ins Triggered . | . . . . . Exploration Rate (%) 15 | 2 34 12 16 14 Regions Visited 4 Branch Regions . Pre-discovered Areas . | . . . . . Known Exits Taken 1 | . . 1 . . Unknown Exits Taken 3 | 1 1 . 1 . Scrap Searched . | . . . . . Spaces Dug . | . . . . . Terrain Destroyed . | . . . . . Melee . | . . . . . Projectile . | . . . . . AOE . | . . . . . Terrain Rammed . | . . . . . Walls Destroyed . | . . . . . Machines Disabled . | . . . . . Actions | -11 -10 -9 -8 -7 --------- Run | Scr Mat Mat Mat Fac Total 740 | . 115 80 90 455 Wait . | . . . . . Move 715 | . 111 78 86 440 Hop . | . . . . . Pick Up . | . . . . . Fast Attach 4 | . 1 . 2 1 Attach 2 | . 1 . 1 . Detach 1 | . . 1 . . Swap . | . . . . . Drop 1 | . . . . 1 Fire 2 | . 2 . . . Melee . | . . . . . Ram 15 | . . 1 1 13 Kick . | . . . . . Crush . | . . . . . Escape Stasis . | . . . . . Rewire . | . . . . . Trap . | . . . . . Miscellaneous . | . . . . . Route ------- -11/Scrapyard -10/Materials (discovered 2 exits: *Mat / [*Min]) -9/Materials (discovered 3 exits: *Mat x3) -8/Materials -7/Factory History --------- Turn | Location | Event 1 | -11/Scrapyard | Released all parts (6) 1 | -11/Scrapyard | Discovered new exit (range 0) 1 | -11/Scrapyard | Entered Materials 28 | -10/Materials | Discovered new exit (range 15) 56 | -10/Materials | Discovered new exit (range 16) 63 | -10/Materials | Entered another Materials area 63 | -9/Materials | Evolved 2 slots: Utility x2 76 | -9/Materials | Identified exit to Materials 104 | -9/Materials | Entered another Materials area 104 | -8/Materials | Evolved 2 slots: Utility x2 138 | -8/Materials | Discovered new exit (range 16) 145 | -8/Materials | Entered Factory 145 | -7/Factory | Evolved 2 slots: Utility x2 230 | -7/Factory | Core integrity fell below 50% 317 | -7/Factory | Build established: Mutant 358 | -7/Factory | Core integrity fell below 20% 364 | -7/Factory | Destroyed by S-27 Virus with Autogun Last Messages --------------- 00219_ G-47 Trooper suffers critical hit (Burn). 00219_ Sensor Array destroyed. 00221_ G-47 Trooper suffers critical hit (Burn). 00233_ O-24 Administrator: "IFF HANDSHAKE FAILED. SECURING TERMINAL." 00237_ ALERT: Hostiles spotted, dispatching reinforcements to Terminal F012. 00280_ C-30 ARC bursts open, deploying its payload. 00280_ B-48 Gladiator unfolds itself. 00280_ G-47 Trooper unfolds itself. 00281_ K-01 Serf collects debris. 00300_ Slammed into K-01 Serf. 00300_ Destabilizing: System corrupted (+1). 00302_ Slammed into K-01 Serf. 00306_ Slammed into R-06 Scavenger. 00310_ Slammed into K-01 Serf. 00345_ K-01 Serf collects debris. 00346_ O-16 Technician: "IFF HANDSHAKE FAILED. SECURING TERMINAL." 00353_ ALERT: Hostiles spotted, dispatching reinforcements to Terminal F004. 00357_ Slammed into S-27 Virus. Map ----- +----------------------------------------------------+ | ?????? #?????????????????????????? | | ???????###### #?????????????????????????? | | ????????????# #?????????????????????????? | | ????????????# #???+#+#??????????????????? | | ????????????# #??? #??????????????????? | | ????????????# #??? #??????????????????? | | ????????????# #??? #??????????????????? | | ????????????# #### #??????????????????? | | ????????????+ #??????????????????? | | ????????????# ##?????????????????? | | ????????????## ######### #?????????????????? | | ?????????????# ????????# +?????????????????? | | ?????????????#?????????# #?????????????????? | | ???????????????????????# #?????????????????? | | ???????????????????????# ####+#????????????? | | ???????????????????????# % #????????????? | | ???????????????????????#ss t #????????????? | | ??????????????????###### % ##???????????? | | ??????????????????# ss ????????? | | ??????????????????+ ????????? | | ??????????????????# """ """ """?????????? | | ??????????????????# [/ """ """ ""T?????????? | | ??????????????????# /* """ """ ????????? | | ??????????????????# ????????? | | ??????????????????# ????????? | | ??????????????????# @ ????????? | | ????????????????# ????????? | | ????????????????# #####+###### T#####?????????? | | ????????????????# ?????????????##?????????????? | | ????????????????# ?????????????????????????????? | | ????????????????# ?????????????????????????????? | | ??????????????? ??????????????????????????????? | | ??????????????####???????????????????????????????? | | ?????????????????????????????????????????????????? | | ?????????????????????????????????????????????????? | | ?????????????????????????????????????????????????? | | | | | | | | | | | | | | | | | | | | | | | | | | | | | +----------------------------------------------------+ Best States ------------- Heat Dissipation 34 Energy Generation 5 Energy Capacity 100 Matter Stores 300 Matter Capacity 300 Sight Range 16 Robot Scan Range 14 Terrain Scan Density 10 Evasion (%) 62 Item Schematics ----------------- None Robot Schematics ------------------ None Fabricated ------------ Nothing Alien Tech Used ----------------- None Achievements -------------- None Challenges ------------ None Game ------ Seed DeliveryIntegratedCharge Manual? 0 Play Time 00:08:56 Cumulative 342.5 hours Start 2022.05.04 @ 14:13:02 End 2022.05.04 @ 14:19:23 Sessions 1 Manual Loads 0 Difficulty Rogue Special Mode None Game No. 117 Rogue 117 Adventurer 0 Explorer 0 Win Type - Total 7 Types 3/1/0/1/2/0/0/0/0 Lore% 66 Gallery% 79 Achievement% 69 Wizard Run 0 Options --------- ASCII 0 Keyboard 0 Movement Mouse Keybinds 0 Fullscreen 0 Font 28/SmallcapsGlow Map View 72x54 Tactical HUD 1 Map Filters NONE Filters NONE Steam 1 RUN: 50adf023-36ff-4d76-8024-2991bcd196b9